bitfinex-derivatives/quotes_SOLF0:USTF0_20260107
["timestamp","ask_amount","ask_price","bid_price","bid_amount"]
[1767745954216,0.51228414,140.69,140.62,0.49390266]
[1767745954515,6.91228414,140.69,140.62,0.49390266]
[1767745955717,0.51228414,140.67,140.59,6.89810266]
[1767745955907,0.51228414,140.67,140.6,0.49390266]
[1767745957016,6.91328414,140.67,140.6,0.49390266]
[1767745957413,1.69348643,140.62,140.55,0.49390266]
[1767745957617,1.69348643,140.63,140.56,6.4057]
[1767745957810,1.69348643,140.63,140.56,6.89960266]
[1767745958817,0.51228414,140.64,140.56,6.89960266]
[1767745960116,6.91458414,140.64,140.56,6.89960266]
[1767745960419,0.51228414,140.62,140.56,6.4057]
[1767745961219,2.20577057,140.65,140.58,0.49390266]
[1767745961814,2.20577057,140.65,140.58,6.89870266]
[1767745962115,1.69348643,140.67,140.58,0.49390266]
[1767745962621,8.60667057,140.67,140.59,0.49390266]
[1767745962818,1.69348643,140.66,140.59,0.49390266]
[1767745963210,6.91318414,140.67,140.59,0.49390266]
[1767745963410,1.69348643,140.66,140.59,0.49390266]
[1767745963611,0.51228414,140.64,140.56,90.43390266]
[1767745963816,0.51228414,140.67,140.58,0.49390266]
[1767745964012,2.20577057,140.67,140.58,0.49390266]
[1767745964412,0.51228414,140.67,140.61,6.4032]
[1767745964616,0.51228414,140.67,140.61,6.89710266]
[1767745964817,2.20577057,140.7,140.62,0.49390266]
[1767745965018,0.51228414,140.7,140.62,0.49390266]
[1767745965219,2.20577057,140.7,140.62,0.49390266]
[1767745965610,8.60527057,140.7,140.62,6.89690266]
[1767745966418,6.91178414,140.7,140.63,6.4025]
[1767745966619,1.69348643,140.71,140.64,0.49390266]
[1767745967118,2.20577057,140.73,140.64,0.49390266]
[1767745968617,8.60387057,140.73,140.65,6.4016]
[1767745968926,1.69348643,140.71,140.65,6.4016]
[1767745969226,1.69348643,140.71,140.64,0.49390266]
[1767745969612,2.20577057,140.69,140.61,0.49390266]
[1767745969918,0.51228414,140.68,140.61,6.89710266]
[1767745970320,1.69348643,140.67,140.61,0.49390266]
[1767745970516,0.51228414,140.66,140.59,6.4042]
[1767745970821,1.69348643,140.67,140.6,0.49390266]
[1767745971612,8.09438643,140.67,140.6,0.49390266]
[1767745973124,8.09438643,140.67,140.6,6.89770266]
[1767745973519,8.60667057,140.67,140.6,6.89770266]
[1767745977125,8.60597057,140.69,140.61,0.49390266]
[1767745978036,8.60597057,140.69,140.62,6.403]
[1767745979433,8.60597057,140.69,140.58,183.5863]
[1767745979434,0.49426376,140.68,140.6,0.46484267]
[1767745979831,0.49426376,140.71,140.61,0.46484267]
[1767745980032,0.49426376,140.71,140.62,0.46484267]
[1767745980428,1.69348643,140.7,140.62,0.46484267]
[1767745980628,2.18775019,140.7,140.62,0.46484267]
[1767745981051,0.49426376,140.7,140.64,6.4021]
[1767745981838,0.49426376,140.7,140.62,8.5610291]
[1767745982037,83.88,140.73,140.62,8.5610291]
[1767745982038,2.1540075,140.69,140.62,6.86754267]
[1767745987248,2.1540075,140.69,140.63,6.4025]
[1767745991445,0.46052107,140.69,140.63,6.4025]
[1767745991949,0.46052107,140.69,140.64,6.4021]
[1767745992449,0.46052107,140.69,140.62,0.46484267]
[1767745992649,5.36620863,140.68,140.63,6.4026]
[1767745992849,8.5539075,140.69,140.63,6.4026]
[1767745993051,5.36618877,140.68,140.63,6.4026]
[1767745993251,8.5539075,140.69,140.63,6.4026]
[1767745993550,5.36770648,140.68,140.63,6.4026]
[1767745993744,8.5539075,140.69,140.63,6.4026]
[1767745993946,5.36836113,140.68,140.63,6.4026]
[1767745994145,8.5539075,140.69,140.63,6.4026]
[1767745994347,83.88,140.73,140.59,101.31548643]
[1767745994348,0.46052107,140.66,140.59,6.0]
[1767745994555,0.46052107,140.64,140.57,19.75648966]
[1767745995344,0.46052107,140.64,140.59,6.4043]
[1767745995549,0.46052107,140.66,140.59,0.48402118]
[1767745995847,5.37205643,140.65,140.59,6.88802118]
[1767745996044,6.86182107,140.66,140.59,6.88802118]
[1767745996246,5.37193407,140.65,140.59,6.88802118]
[1767745996446,6.86182107,140.66,140.59,6.88802118]
[1767745996752,5.37217939,140.65,140.59,6.88802118]
[1767745996941,0.46052107,140.66,140.61,6.4034]
[1767745997345,5.37236559,140.65,140.61,6.4034]
[1767745997553,0.46052107,140.66,140.61,6.4034]
[1767745997755,5.37241955,140.65,140.61,6.4034]
[1767745998050,1.69348643,140.65,140.59,0.48402118]
[1767745999553,1.69348643,140.65,140.6,6.4039]
[1767746000556,0.46052107,140.66,140.6,6.4039]
[1767746000756,5.36809001,140.65,140.6,6.4039]
[1767746001058,0.46052107,140.66,140.59,0.48402118]
[1767746001353,2.1540075,140.68,140.6,0.48402118]
[1767746002251,0.46052107,140.67,140.6,0.48402118]
[1767746002555,0.46052107,140.67,140.62,6.403]
[1767746003154,0.46052107,140.67,140.6,6.88752118]
[1767746003453,0.46052107,140.65,140.59,6.0]
[1767746003653,0.46052107,140.65,140.58,0.48402118]
[1767746004552,0.46052107,140.65,140.59,6.4043]
[1767746005151,0.46052107,140.65,140.6,6.4039]
[1767746007351,0.46052107,140.65,140.58,0.48402118]
[1767746008657,0.46052107,140.65,140.59,6.4044]
[1767746009469,0.46052107,140.65,140.59,6.88842118]
[1767746011059,0.46052107,140.64,140.58,6.4048]
[1767746012553,6.86272107,140.64,140.58,6.4048]
[1767746012754,0.499282,140.63,140.57,0.48402118]
[1767746013462,6.901882,140.63,140.57,6.88932118]
[1767746013862,0.499282,140.62,140.56,89.96]
[1767746014064,0.499282,140.62,140.56,83.96]
[1767746014466,0.499282,140.62,140.55,13.75298383]
[1767746015159,0.499282,140.61,140.55,13.27246848]
[1767746015369,0.499282,140.58,140.49,0.48051535]
[1767746015666,3.14993244,140.57,140.49,0.48051535]
[1767746015859,0.499282,140.57,140.51,6.408]
[1767746017065,0.499282,140.59,140.53,0.48051535]
[1767746022062,6.903882,140.59,140.52,6.4074]
[1767746022767,6.903882,140.59,140.52,6.88791535]
[1767746022968,6.903082,140.61,140.53,0.48051535]
[1767746024570,6.903082,140.61,140.54,6.4065]
[1767746025470,6.4038,140.61,140.55,0.48051535]
[1767746025971,6.903082,140.61,140.55,0.48051535]
[1767746027668,99.6069,140.62,140.47,34.65660828]
[1767746027872,2.65065044,140.62,140.49,183.6945]
[1767746028170,0.499282,140.61,140.51,0.48051535]
[1767746029573,6.903282,140.6,140.52,6.88781535]
[1767746029870,0.499282,140.59,140.52,6.88781535]
[1767746030269,0.499282,140.59,140.5,0.48051535]
[1767746030870,6.4059,140.56,140.5,0.48051535]
[1767746032475,6.905182,140.56,140.5,0.48051535]
[1767746032868,6.4063,140.55,140.47,104.22672363]
[1767746033074,6.905582,140.55,140.48,0.48051535]
[1767746033671,0.499282,140.55,140.48,0.48051535]
[1767746034576,0.499282,140.55,140.49,6.4089]
[1767746039379,0.499282,140.55,140.49,6.89064069]
[1767746040782,0.499282,140.55,140.5,6.4085]
[1767746040968,0.47354674,140.6,140.52,0.48174069]
[1767746041176,0.47354674,140.63,140.53,0.48174069]
[1767746041575,6.4038,140.61,140.55,6.4062]
[1767746041782,6.89114379,140.61,140.53,0.48174069]
[1767746042383,0.48734379,140.59,140.51,0.46768376]
[1767746043480,6.89184379,140.59,140.51,6.87538376]
[1767746043879,6.89184379,140.59,140.51,0.46768376]
[1767746044187,0.48734379,140.61,140.54,0.46768376]
[1767746045181,6.89094379,140.61,140.54,0.46768376]
[1767746046686,6.89094379,140.61,140.54,6.87438376]
[1767746048887,6.89094379,140.61,140.55,0.46768376]
[1767746049978,6.89094379,140.61,140.54,6.4067]
[1767746050184,0.48734379,140.6,140.54,6.4067]
[1767746053186,6.4036,140.61,140.55,6.4062]
[1767746053384,6.89094379,140.61,140.55,6.4062]
[1767746053983,6.89094379,140.61,140.53,6.87438376]
[1767746054188,6.89094379,140.61,140.53,0.46768376]
[1767746054392,0.48734379,140.6,140.53,0.46768376]
[1767746055593,0.48734379,140.6,140.54,6.4067]
[1767746056294,0.48734379,140.6,140.55,6.4062]
[1767746056594,0.48734379,140.6,140.53,0.46768376]
[1767746057083,6.89134379,140.6,140.53,6.87438376]
[1767746059396,6.89134379,140.6,140.54,6.4065]
[1767746060394,0.48734379,140.64,140.55,13.23815652]
[1767746060588,5.80862388,140.63,140.56,0.46768376]
[1767746060786,0.48734379,140.68,140.58,3.1183342]
[1767746061185,0.48734379,140.68,140.59,0.46768376]
[1767746062093,0.48734379,140.64,140.54,84.02]
[1767746062395,0.48734379,140.64,140.55,0.46768376]
[1767746063684,6.88984379,140.64,140.57,6.4053]
[1767746067799,6.4019,140.65,140.59,0.46768376]
[1767746067991,0.48734379,140.66,140.59,0.46768376]
[1767746068197,0.48734379,140.68,140.59,0.46768376]
[1767746068702,6.88764379,140.68,140.61,6.87118376]
[1767746070002,0.48734379,140.68,140.61,0.46768376]
[1767746070697,0.48734379,140.68,140.62,6.403]
[1767746070902,0.48734379,140.68,140.62,8.56624962]
[1767746072102,0.48734379,140.68,140.62,6.87068376]
[1767746073902,90.79128031,140.71,140.63,6.87054744]
[1767746074103,90.79128031,140.71,140.63,0.46804744]
[1767746074712,6.87128031,140.71,140.63,0.46804744]
[1767746074912,0.47188031,140.71,140.65,6.86944744]
[1767746076313,6.87088031,140.71,140.65,0.46804744]
[1767746076517,0.47188031,140.7,140.62,0.46804744]
[1767746077603,0.47188031,140.7,140.64,6.4021]
[1767746077809,6.87048031,140.72,140.64,0.46804744]
[1767746079602,6.87048031,140.72,140.65,6.4015]
[1767746080106,0.47188031,140.7,140.63,6.4022]
[1767746080309,0.47188031,140.68,140.61,0.46804744]
[1767746081702,6.87228031,140.68,140.61,6.87124744]
[1767746082919,0.47188031,140.66,140.59,6.404]
[1767746084612,6.87318031,140.66,140.59,6.404]
[1767746086308,6.87318031,140.66,140.6,0.46804744]
[1767746086515,6.87258031,140.68,140.6,0.46804744]
[1767746087711,6.87258031,140.68,140.61,6.4035]
[1767746087912,0.47188031,140.68,140.6,0.46804744]
[1767746089218,0.47188031,140.68,140.62,6.87104744]
[1767746089615,0.47188031,140.7,140.63,0.46804744]
[1767746090010,84.35188031,140.72,140.64,0.46804744]
[1767746090205,0.47188031,140.72,140.64,0.46804744]
[1767746090413,0.47188031,140.75,140.66,0.46804744]
[1767746091517,0.47188031,140.75,140.67,6.4007]
[1767746092705,6.3976,140.74,140.67,6.4007]
[1767746093316,0.47188031,140.75,140.68,0.46804744]
[1767746093518,0.47188031,140.77,140.69,0.46804744]
[1767746094413,6.86828031,140.77,140.7,6.3993]
[1767746096750,6.86828031,140.77,140.71,0.46804744]
[1767746097125,0.47188031,140.77,140.71,6.86694744]
[1767746098235,6.86818031,140.77,140.71,0.46804744]
[1767746102034,0.46149873,140.8,140.73,0.45563895]
[1767746102632,8.55136459,140.82,140.73,0.45563895]
[1767746102837,6.85579873,140.82,140.75,0.45563895]
[1767746103030,0.46149873,140.81,140.75,0.45563895]
[1767746104933,6.85479873,140.84,140.75,0.45563895]
[1767746105540,6.85479873,140.84,140.76,8.54780481]
[1767746105930,6.3936,140.83,140.76,2.15120481]
[1767746106133,6.85509873,140.83,140.76,2.15120481]
[1767746107437,0.46149873,140.81,140.74,6.0]
[1767746107637,0.46149873,140.81,140.73,0.45563895]
[1767746108148,6.3952,140.8,140.73,6.85363895]
[1767746108436,0.46149873,140.81,140.74,0.45563895]
[1767746109640,0.46149873,140.83,140.76,2.15120481]
[1767746109829,0.46149873,140.86,140.77,0.45563895]
[1767746110137,6.3926,140.85,140.77,6.85173895]
[1767746110337,0.46149873,140.86,140.77,6.85173895]
[1767746111342,0.46149873,140.85,140.77,6.85173895]
[1767746111541,6.3931,140.84,140.77,6.85173895]
[1767746113032,1.69556586,140.86,140.78,0.45563895]
[1767746113033,6.3925,140.86,140.78,0.45563895]
[1767746113228,6.3925,140.86,140.79,0.45563895]
[1767746113630,0.46149873,140.87,140.79,0.45563895]
[1767746113833,0.46149873,140.9,140.81,0.45563895]
[1767746114244,6.85369873,140.86,140.79,6.395]
[1767746114538,0.46149873,140.85,140.78,0.45563895]
[1767746114739,0.46149873,140.84,140.77,83.9]
[1767746114936,0.46149873,140.82,140.74,6.3973]
[1767746115141,1.69556586,140.83,140.74,6.3973]
[1767746115142,1.69556586,140.83,140.74,0.45563895]
[1767746115339,8.55006459,140.85,140.77,0.45563895]
[1767746115539,0.46149873,140.85,140.77,0.45563895]
[1767746115940,6.3932,140.84,140.77,0.45563895]
[1767746116343,0.46149873,140.85,140.77,0.45563895]
[1767746116737,6.3931,140.84,140.77,6.85173895]
[1767746116938,0.46149873,140.85,140.77,0.45563895]
[1767746117141,1.69556586,140.87,140.79,2.15120481]
[1767746117339,0.46149873,140.86,140.79,0.45563895]
[1767746117741,1.69556586,140.87,140.74,99.5149]
[1767746117742,0.46149873,140.84,140.76,0.45563895]
[1767746118538,6.3936,140.83,140.76,6.85193895]
[1767746119049,0.46149873,140.84,140.76,0.45563895]
[1767746119234,6.85459873,140.84,140.77,6.3961]
[1767746122141,99.4322,140.87,140.78,0.45563895]
[1767746122142,6.3925,140.86,140.78,0.45563895]
[1767746122542,6.3925,140.86,140.78,84.33563895]
[1767746123445,0.46149873,140.85,140.78,84.33563895]
[1767746123648,0.46149873,140.85,140.79,6.3952]
[1767746127246,8.54856459,140.88,140.8,6.85033895]
[1767746127448,2.15706459,140.88,140.8,6.85033895]
[1767746128556,6.3917,140.87,140.8,6.85033895]
[1767746130252,6.85319873,140.87,140.8,6.85033895]
[1767746130454,6.85369873,140.86,140.79,90.2552]
[1767746130855,0.46149873,140.86,140.8,6.3949]
[1767746131458,8.08716586,140.88,140.8,6.84811159]
[1767746131655,8.54458357,140.88,140.8,6.84811159]
[1767746131857,6.3917,140.87,140.8,6.84811159]
[1767746135253,6.3917,140.87,140.81,6.3943]
[1767746137061,6.3923,140.86,140.8,0.45321159]
[1767746137363,6.3923,140.86,140.77,8.79734368]
[1767746137364,0.45741771,140.88,140.78,84.31321159]
[1767746137756,6.84961771,140.86,140.78,84.31321159]
[1767746137959,0.45741771,140.85,140.78,0.45321159]
[1767746138760,0.45741771,140.84,140.78,0.45321159]
[1767746138961,0.45741771,140.84,140.77,83.86]
[1767746139259,0.45741771,140.88,140.78,0.45321159]
[1767746140657,0.45741771,140.85,140.75,99.11055527]
[1767746140858,0.45741771,140.85,140.76,0.45321159]
[1767746141661,6.85051771,140.84,140.76,6.84971159]
[1767746143261,6.85051771,140.84,140.76,15.64705527]
[1767746143565,6.85051771,140.84,140.77,6.3962]
[1767746143767,6.85051771,140.84,140.77,6.84941159]
[1767746143956,6.85051771,140.84,140.78,0.45321159]
[1767746144157,6.3931,140.84,140.78,0.45321159]
[1767746145868,6.84991771,140.86,140.78,0.45321159]
[1767746146162,0.45741771,140.86,140.78,0.45321159]
[1767746146465,0.45741771,140.86,140.78,9.25055527]
[1767746147562,6.3926,140.85,140.78,9.25055527]
[1767746147765,6.3926,140.85,140.78,15.64615527]
[1767746148264,6.3926,140.85,140.79,8.79734368]
[1767746148451,0.45741771,140.86,140.79,15.19264368]
[1767746149569,6.84961771,140.86,140.79,15.19264368]
[1767746149764,0.45741771,140.86,140.8,15.66822185]
[1767746149964,0.46119381,140.88,140.8,15.66822185]
[1767746150668,6.85279381,140.88,140.8,15.66822185]
[1767746150869,0.46119381,140.87,140.8,8.79734368]
[1767746152569,6.3923,140.86,140.8,8.79734368]
[1767746154468,6.3923,140.86,140.81,8.79734368]
[1767746161182,6.3927,140.85,140.81,8.79734368]
[1767746161477,0.46119381,140.85,140.77,6.0]
[1767746161678,0.46119381,140.85,140.76,13.23815652]
[1767746161874,0.46119381,140.85,140.76,13.68538111]
[1767746162472,2.6420542,140.86,140.76,0.44722459]
[1767746162473,0.44717261,140.82,140.76,0.44722459]
[1767746162682,0.44717261,140.82,140.74,97.54538111]
[1767746163187,0.44717261,140.82,140.74,13.68538111]
[1767746163681,6.3949,140.8,140.74,0.44722459]
[1767746164183,6.84147261,140.82,140.75,0.44310204]
[1767746165286,6.3946,140.81,140.75,0.44310204]
[1767746167084,6.84117261,140.82,140.75,0.44310204]
[1767746167789,6.394,140.82,140.75,0.44310204]
[1767746168292,0.48509997,140.86,140.78,0.44310204]
[1767746168987,6.3928,140.85,140.78,0.44310204]
[1767746170593,6.3928,140.85,140.78,6.83880204]
[1767746170990,6.87789997,140.85,140.78,6.83880204]
[1767746173293,6.87789997,140.85,140.79,0.44310204]
[1767746175092,0.48509997,140.85,140.79,6.83830204]
[1767746175294,6.87719997,140.87,140.79,6.83830204]
[1767746175795,6.87719997,140.87,140.8,6.83790204]
[1767746183600,0.48509997,140.86,140.8,0.44310204]
[1767746184601,6.3926,140.85,140.8,0.44310204]
[1767746192004,0.48509997,140.86,140.81,0.46378819]
[1767746194208,6.87749997,140.86,140.8,6.3948]
[1767746194411,0.47788785,140.85,140.79,6.85908819]
[1767746195712,6.87058785,140.85,140.79,6.85908819]
[1767746205717,6.87058785,140.85,140.8,0.46378819]
[1767746208914,0.47788785,140.84,140.78,13.23815652]
[1767746209114,0.47788785,140.84,140.77,13.23815652]
[1767746209115,0.47788785,140.83,140.77,13.23815652]
[1767746209326,0.47788785,140.83,140.77,13.70194471]
[1767746209818,0.47788785,140.83,140.77,6.85998819]
[1767746210019,8.08462987,140.84,140.78,0.46378819]
[1767746210020,6.3931,140.84,140.78,0.46378819]
[1767746210216,6.87098785,140.84,140.78,0.46378819]
[1767746211621,6.87098785,140.84,140.78,6.85938819]
[1767746213322,6.87148785,140.83,140.77,13.23815652]
[1767746213722,0.47788785,140.83,140.76,20.09824471]
[1767746213921,6.87188785,140.82,140.76,20.09824471]
[1767746219128,6.87188785,140.82,140.76,6.86008819]
[1767746221431,6.3945,140.81,140.76,0.46378819]
[1767746221724,0.45379743,140.8,140.75,13.23815652]
[1767746221925,1.69152987,140.78,140.7,6.85361009]
[1767746222119,1.69152987,140.78,140.71,0.45421009]
[1767746222316,1.69152987,140.8,140.71,0.45421009]
[1767746223732,6.3961,140.78,140.72,0.45421009]
[1767746224530,8.08762987,140.78,140.71,6.3989]
[1767746224729,6.3962,140.77,140.7,84.33421009]
[1767746225639,6.3962,140.77,140.7,90.73361009]
[1767746226229,6.3962,140.77,140.7,6.85361009]
[1767746227533,6.397,140.76,140.7,0.45421009]
[1767746232928,6.397,140.76,140.7,6.85361009]
[1767746233937,6.397,140.76,140.7,0.45421009]
[1767746238444,1.69152987,140.76,140.68,0.45421009]
[1767746239037,1.69152987,140.79,140.7,6.85351009]
[1767746239338,85.53152987,140.81,140.72,0.45421009]
[1767746239637,6.3957,140.79,140.72,6.85231009]
[1767746239839,99.45,140.84,140.73,2.14573996]
[1767746239840,1.69152987,140.82,140.73,2.14573996]
[1767746240045,1.69152987,140.82,140.74,0.45421009]
[1767746241035,1.69152987,140.82,140.72,0.45421009]
[1767746242243,99.4585,140.83,140.72,6.85231009]
[1767746242244,6.3958,140.78,140.72,6.85231009]
[1767746249751,6.3952,140.8,140.74,0.45421009]
[1767746250656,6.3952,140.8,140.74,6.85161009]
[1767746252562,8.08592987,140.82,140.74,6.85161009]
[1767746252756,85.53152987,140.85,140.76,0.54676917]
[1767746253261,6.3935,140.83,140.76,0.54676917]
[1767746255662,6.3935,140.83,140.76,6.94336917]
[1767746257265,83.84,140.85,140.78,0.54676917]
[1767746257970,6.3931,140.84,140.78,0.54676917]
[1767746258156,83.84,140.85,140.78,0.54676917]
[1767746258357,83.84,140.85,140.75,0.54676917]
[1767746258662,6.3935,140.83,140.75,0.54676917]
[1767746258870,6.3935,140.83,140.69,130.00692223]
[1767746258871,2.6437486,140.82,140.71,19.76269237]
[1767746259162,2.6437486,140.82,140.71,0.54676917]
[1767746259361,86.4637486,140.82,140.71,0.54676917]
[1767746260568,6.3954,140.79,140.72,6.3985]
[1767746260758,6.3954,140.79,140.72,6.94526917]
[1767746262865,6.3954,140.79,140.72,0.54676917]
[1767746263071,6.3958,140.78,140.72,0.54676917]
[1767746263874,2.6437486,140.78,140.69,83.9]
[1767746264371,2.6437486,140.78,140.69,84.44676917]
[1767746264967,99.4351,140.86,140.75,0.54676917]
[1767746265472,99.4351,140.86,140.77,8.84417373]
[1767746266364,183.2501,140.87,140.77,8.84417373]
[1767746267565,6.3936,140.83,140.77,8.84417373]
[1767746268473,183.2501,140.87,140.77,8.84417373]
[1767746269974,102.0784486,140.86,140.76,9.3909429]
[1767746271773,6.3936,140.83,140.76,9.3909429]
[1767746274274,83.82,140.85,140.79,9.3909429]
[1767746274477,185.8875486,140.88,140.79,9.3909429]
[1767746275575,6.3926,140.85,140.79,9.3909429]
[1767746275777,83.82,140.88,140.8,8.84417373]
[1767746276070,90.2116,140.88,140.8,9.3909429]
[1767746276274,90.2116,140.88,140.81,9.3909429]
[1767746276470,6.3916,140.88,140.82,9.3909429]
[1767746277073,6.3917,140.87,140.82,0.54676917]
[1767746279180,183.2189,140.91,140.82,0.54676917]
[1767746280184,6.3913,140.88,140.82,0.54676917]
[1767746281779,6.3918,140.87,140.8,9.39535514]
[1767746281979,6.3918,140.87,140.8,0.55118141]
[1767746282472,6.3922,140.86,140.8,0.55118141]
[1767746282673,6.3922,140.86,140.78,93.27535514]
[1767746283176,6.3927,140.85,140.78,90.82688141]
[1767746283377,2.6437486,140.86,140.78,84.43118141]
[1767746283884,9.0363486,140.86,140.78,0.55118141]
[1767746284187,2.6437486,140.86,140.78,0.55118141]
[1767746284484,6.3927,140.85,140.78,0.55118141]
[1767746287087,6.3927,140.85,140.79,8.84417373]
[1767746288203,90.1918,140.87,140.8,0.55118141]
[1767746288391,90.1918,140.87,140.8,9.39535514]
[1767746288687,83.8,140.87,140.8,9.39535514]
[1767746289791,6.3922,140.86,140.8,9.39535514]
[1767746291279,6.3922,140.86,140.8,0.55118141]
[1767746291891,6.3922,140.86,140.8,9.39535514]
[1767746293290,2.6437486,140.89,140.8,9.39535514]
[1767746294591,6.3917,140.87,140.8,9.39535514]
[1767746294792,83.8,140.9,140.82,0.55118141]
[1767746295387,6.3913,140.88,140.82,0.55118141]
[1767746297393,6.3918,140.87,140.82,0.55118141]
[1767746307394,6.3918,140.87,140.82,9.39535514]
[1767746308201,6.3918,140.87,140.82,8.84417373]
[1767746310095,185.8226486,140.91,140.82,8.84417373]
[1767746310096,6.3922,140.86,140.82,8.84417373]
[1767746310298,102.0597486,140.89,140.82,8.84417373]
[1767746310502,2.6437486,140.87,140.81,7.373e-05]
[1767746310703,2.6437486,140.87,140.79,13.2159232]
[1767746311007,2.6437486,140.87,140.78,13.76710461]
[1767746311498,83.78,140.88,140.8,0.60725925]
[1767746313113,6.3922,140.86,140.8,0.60725925]
[1767746313313,6.3922,140.86,140.8,13.82318245]
[1767746316014,6.3922,140.86,140.81,0.60725925]
[1767746316215,6.3918,140.87,140.81,0.60725925]
[1767746316607,6.3918,140.87,140.81,13.82318245]
[1767746318517,8.08307481,140.87,140.81,13.82318245]
[1767746319619,1.69127481,140.88,140.82,13.82318245]
[1767746320618,1.69127481,140.88,140.82,0.60725925]
[1767746321209,99.3391,141.0,140.86,13.2159232]
[1767746321414,198.669,141.01,140.89,2.29853406]
[1767746321615,1.69127481,141.02,140.94,0.60725925]
[1767746321912,1.69127481,141.02,140.98,6.6433393]
[1767746322109,1.69127481,141.04,140.98,6.6433393]
[1767746322309,1.69127481,141.05,140.99,6.96295026]
[1767746322519,83.78,141.07,141.01,6.6433393]
[1767746322713,1.69127481,141.06,141.02,6.96295026]
[1767746322915,1.69127481,141.06,141.03,5.026e-05]
[1767746323114,1.69127481,141.06,140.99,6.6433393]
[1767746323515,8.07457481,141.06,140.99,6.6433393]
[1767746324125,8.07457481,141.06,140.98,7.25059855]
[1767746325222,8.07457481,141.06,140.98,0.60725925]
[1767746326023,8.07457481,141.06,140.97,90.5033393]
[1767746326024,1.69127481,141.04,140.96,0.60725925]
[1767746326423,1.69127481,141.02,140.96,0.60725925]
[1767746326721,8.07637481,141.02,140.96,0.60725925]
[1767746331627,83.76,141.06,140.98,0.60725925]
[1767746331829,13.123082,141.08,141.0,0.60725925]
[1767746333032,19.505482,141.08,141.0,0.60725925]
[1767746334833,19.505482,141.08,141.01,6.44432741]
[1767746335029,19.505482,141.08,141.02,6.44432741]
[1767746335224,19.505482,141.08,141.0,0.60725925]
[1767746335425,19.505482,141.08,141.01,6.44067056]
[1767746335630,19.505482,141.08,141.0,0.60725925]
[1767746335833,19.505482,141.08,141.01,6.44067241]
[1767746336035,19.505482,141.08,141.0,0.60725925]
[1767746336237,19.505482,141.08,141.01,6.43757568]
[1767746336425,19.505482,141.08,141.0,0.60725925]
[1767746336626,19.505482,141.08,141.01,6.43757568]
[1767746336828,19.505482,141.08,141.0,0.60725925]
[1767746337029,19.505482,141.08,141.01,6.43757572]
[1767746337231,19.505482,141.08,141.0,0.60725925]
[1767746337431,19.505482,141.08,141.01,6.43493522]
[1767746337734,19.505482,141.08,141.0,0.60725925]
[1767746337935,19.505482,141.08,141.01,6.43493522]
[1767746338238,19.505482,141.08,141.0,0.60725925]
[1767746338436,19.505482,141.08,141.01,6.43269315]
[1767746338626,19.505482,141.08,141.0,0.60725925]
[1767746338921,19.505482,141.08,141.01,6.43269315]
[1767746339123,19.505482,141.08,141.0,0.60725925]
[1767746340136,6.3827,141.07,141.0,84.38725925]
[1767746340827,13.123082,141.08,141.01,6.43011383]
[1767746340828,6.3832,141.06,141.01,6.43011383]
[1767746341034,6.3832,141.06,141.0,84.38725925]
[1767746342328,6.3836,141.05,140.97,0.6565664]
[1767746342527,6.3836,141.05,140.92,0.6565664]
[1767746342528,1.69127481,141.01,140.92,0.6565664]
[1767746342730,1.69127481,140.99,140.92,0.6565664]
[1767746343839,1.69127481,141.0,140.93,0.6565664]
[1767746344230,83.7,141.03,140.94,0.6565664]
[1767746344433,85.39127481,141.03,140.94,0.6565664]
[1767746344629,1.69127481,141.01,140.9,0.6565664]
[1767746344833,8.07767481,140.99,140.92,7.0458664]
[1767746345130,1.69127481,141.01,140.93,0.6565664]
[1767746345430,83.7,141.03,140.95,0.6565664]
[1767746345431,85.39127481,141.03,140.95,0.6565664]
[1767746346428,83.7,141.03,140.95,0.6565664]
[1767746346629,6.385,141.02,140.95,0.6565664]
[1767746346829,99.3288,141.01,140.89,0.6565664]
[1767746347034,6.3896,140.92,140.86,0.6565664]
[1767746347230,83.7,140.96,140.84,0.6565664]
[1767746347429,1.69127481,140.95,140.85,0.6565664]
[1767746347634,1.69127481,140.95,140.87,0.6565664]
[1767746348631,8.07957481,140.95,140.87,0.6565664]
[1767746348837,6.3883,140.95,140.87,0.6565664]
[1767746353232,99.3738,140.95,140.84,84.4365664]
[1767746354631,6.3891,140.93,140.85,6.39364244]
[1767746354835,6.3891,140.93,140.84,84.4365664]
[1767746354836,6.3891,140.93,140.86,6.39364244]
[1767746355032,6.3891,140.93,140.84,84.4365664]
[1767746355239,6.3891,140.93,140.85,6.39460431]
[1767746355536,6.3891,140.93,140.86,6.39460431]
[1767746355839,6.3891,140.93,140.87,6.39460431]
[1767746356039,6.3891,140.93,140.84,0.6565664]
[1767746356232,6.3891,140.93,140.85,6.39699203]
[1767746356427,6.3891,140.93,140.86,6.39699203]